Workbook

Sheet main
B2: Credit Card Payoff Calculator with Amortization
B4: Present Balance | C4: 1250 | E4: Total
B5: Interest Rate | C5: 0.16 | E5: Principal | F5: =C4 -> 1250
B6: Each Payment | C6: 100 | E6: Interest | F6: =SUMIF(E11:E100,">0") -> 126.6265214
B7: Payment Starts | C7: 2022-07-01 | E7: Amount | F7: =SUM(F5:F6) -> 1376.626521
B8: Payment Ends | C8: =INDEX(B11:B130,MATCH(TRUE,E11:E130<0,0)-1) -> 2023-08-01 | E8: Months | F8: =COUNTIF(E11:E100,">0") -> 14
B10: Date | C10: Payment | D10: Principal | E10: Interest | F10: Balance
B11: =C7 -> 2022-07-01 | C11: =$C$6 -> 100 | D11: =C11-E11 -> 83.33333333 | E11: =C4*C5/12 -> 16.66666667 | F11: =C4-D11 -> 1166.666667
B12: =DATE(YEAR(B11),MONTH(B11)+1,DAY(B11)) -> 2022-08-01 | C12: 100 | D12: 84.44444444 | E12: =F11*$C$5/12 -> 15.55555556 | F12: =F11-D12 -> 1082.222222
B13: =DATE(YEAR(B12),MONTH(B12)+1,DAY(B12)) -> 2022-09-01 | C13: 100 | D13: 85.57037037 | E13: 14.42962963 | F13: 996.6518519
B14: 2022-10-01 | C14: 100 | D14: 86.71130864 | E14: 13.28869136 | F14: 909.9405432
B15: 2022-11-01 | C15: 100 | D15: 87.86745942 | E15: 12.13254058 | F15: 822.0730838
B16: 2022-12-01 | C16: 100 | D16: 89.03902555 | E16: 10.96097445 | F16: 733.0340582
B17: 2023-01-01 | C17: 100 | D17: 90.22621256 | E17: 9.773787443 | F17: 642.8078457
B18: 2023-02-01 | C18: 100 | D18: 91.42922872 | E18: 8.570771276 | F18: 551.378617
B19: 2023-03-01 | C19: 100 | D19: 92.64828511 | E19: 7.351714893 | F19: 458.7303318
B20: 2023-04-01 | C20: 100 | D20: 93.88359558 | E20: 6.116404425 | F20: 364.8467363
B21: 2023-05-01 | C21: 100 | D21: 95.13537685 | E21: 4.86462315 | F21: 269.7113594
B22: 2023-06-01 | C22: 100 | D22: 96.40384854 | E22: 3.596151459 | F22: 173.3075109
B23: 2023-07-01 | C23: 100 | D23: 97.68923319 | E23: 2.310766812 | F23: 75.61827769
B24: 2023-08-01 | C24: 100 | D24: 98.9917563 | E24: 1.008243703 | F24: -23.3734786
B25: 2023-09-01 | C25: 100 | D25: 100.3116464 | E25: -0.3116463814 | F25: -123.685125
B26: 2023-10-01 | C26: 100 | D26: 101.649135 | E26: -1.649135 | F26: -225.33426
B27: 2023-11-01 | C27: 100 | D27: 103.0044568 | E27: -3.0044568 | F27: -328.3387168
B28: 2023-12-01 | C28: 100 | D28: 104.3778496 | E28: -4.377849557 | F28: -432.7165663
B29: 2024-01-01 | C29: 100 | D29: 105.7695542 | E29: -5.769554218 | F29: -538.4861206
B30: 2024-02-01 | C30: 100 | D30: 107.1798149 | E30: -7.179814941 | F30: -645.6659355
B31: =DATE(YEAR(B30),MONTH(B30)+1,DAY(B30)) -> 2024-03-01 | C31: =$C$6 -> 100 | D31: 108.6088791 | E31: =F30*$C$5/12 -> -8.60887914 | F31: -754.2748146
B32: 2024-04-01 | C32: 100 | D32: 110.0569975 | E32: -10.05699753 | F32: -864.3318122
B33: 2024-05-01 | C33: 100 | D33: 111.5244242 | E33: -11.52442416 | F33: -975.8562363
B34: 2024-06-01 | C34: 100 | D34: 113.0114165 | E34: -13.01141648 | F34: -1088.867653
B35: 2024-07-01 | C35: 100 | D35: 114.5182354 | E35: -14.51823537 | F35: -1203.385888
B36: 2024-08-01 | C36: 100 | D36: 116.0451452 | E36: -16.04514518 | F36: -1319.431033
B37: 2024-09-01 | C37: 100 | D37: 117.5924138 | E37: -17.59241378 | F37: -1437.023447
B38: 2024-10-01 | C38: 100 | D38: 119.1603126 | E38: -19.16031263 | F38: -1556.18376
B39: 2024-11-01 | C39: 100 | D39: 120.7491168 | E39: -20.7491168 | F39: -1676.932877
B40: 2024-12-01 | C40: 100 | D40: 122.359105 | E40: -22.35910502 | F40: -1799.291982
B41: 2025-01-01 | C41: 100 | D41: 123.9905598 | E41: -23.99055975 | F41: -1923.282541
B42: 2025-02-01 | C42: 100 | D42: 125.6437672 | E42: -25.64376722 | F42: -2048.926309
B43: 2025-03-01 | C43: 100 | D43: =C43-E43 -> 127.3190174 | E43: -27.31901745 | F43: -2176.245326
B44: 2025-04-01 | C44: 100 | D44: 129.0166043 | E44: -29.01660435 | F44: =F43-D44 -> -2305.26193
B45: 2025-05-01 | C45: 100 | D45: 130.7368257 | E45: -30.73682574 | F45: -2435.998756
B46: 2025-06-01 | C46: 100 | D46: 132.4799834 | E46: -32.47998341 | F46: -2568.47874
B47: 2025-07-01 | C47: 100 | D47: 134.2463832 | E47: -34.24638319 | F47: -2702.725123
B48: 2025-08-01 | C48: 100 | D48: 136.036335 | E48: -36.03633497 | F48: -2838.761458
B49: 2025-09-01 | C49: 100 | D49: 137.8501528 | E49: -37.85015277 | F49: -2976.61161
B50: 2025-10-01 | C50: 100 | D50: 139.6881548 | E50: -39.68815481 | F50: -3116.299765
B51: 2025-11-01 | C51: 100 | D51: 141.5506635 | E51: -41.55066354 | F51: -3257.850429
B52: 2025-12-01 | C52: 100 | D52: 143.4380057 | E52: -43.43800572 | F52: -3401.288434
B53: 2026-01-01 | C53: 100 | D53: 145.3505125 | E53: -45.35051246 | F53: -3546.638947
B54: 2026-02-01 | C54: 100 | D54: 147.2885193 | E54: -47.28851929 | F54: -3693.927466
B55: 2026-03-01 | C55: 100 | D55: 149.2523662 | E55: -49.25236622 | F55: -3843.179832
B56: 2026-04-01 | C56: 100 | D56: 151.2423978 | E56: -51.24239777 | F56: -3994.42223
B57: 2026-05-01 | C57: 100 | D57: 153.2589631 | E57: -53.25896307 | F57: -4147.681193
B58: 2026-06-01 | C58: 100 | D58: 155.3024159 | E58: -55.30241591 | F58: -4302.983609
B59: 2026-07-01 | C59: 100 | D59: 157.3731148 | E59: -57.37311479 | F59: -4460.356724
B60: 2026-08-01 | C60: 100 | D60: 159.471423 | E60: -59.47142299 | F60: -4619.828147
B61: 2026-09-01 | C61: 100 | D61: 161.5977086 | E61: -61.59770863 | F61: -4781.425856
B62: 2026-10-01 | C62: 100 | D62: 163.7523447 | E62: -63.75234474 | F62: -4945.1782
B63: 2026-11-01 | C63: 100 | D63: 165.9357093 | E63: -65.93570934 | F63: -5111.11391
B64: 2026-12-01 | C64: 100 | D64: 168.1481855 | E64: -68.14818546 | F64: -5279.262095
B65: 2027-01-01 | C65: 100 | D65: 170.3901613 | E65: -70.39016127 | F65: -5449.652256
B66: 2027-02-01 | C66: 100 | D66: 172.6620301 | E66: -72.66203009 | F66: -5622.314287
B67: 2027-03-01 | C67: 100 | D67: 174.9641905 | E67: -74.96419049 | F67: -5797.278477
B68: 2027-04-01 | C68: 100 | D68: 177.2970464 | E68: -77.29704636 | F68: -5974.575523
B69: 2027-05-01 | C69: 100 | D69: 179.661007 | E69: -79.66100698 | F69: -6154.23653
B70: 2027-06-01 | C70: 100 | D70: 182.0564871 | E70: -82.05648707 | F70: -6336.293017
B71: 2027-07-01 | C71: 100 | D71: 184.4839069 | E71: -84.4839069 | F71: -6520.776924
B72: 2027-08-01 | C72: 100 | D72: 186.9436923 | E72: -86.94369232 | F72: -6707.720617
B73: 2027-09-01 | C73: 100 | D73: 189.4362749 | E73: -89.43627489 | F73: -6897.156892
B74: 2027-10-01 | C74: 100 | D74: 191.9620919 | E74: -91.96209189 | F74: -7089.118983
B75: 2027-11-01 | C75: 100 | D75: =C75-E75 -> 194.5215864 | E75: -94.52158645 | F75: -7283.64057
B76: 2027-12-01 | C76: 100 | D76: 197.1152076 | E76: -97.1152076 | F76: =F75-D76 -> -7480.755777
B77: 2028-01-01 | C77: 100 | D77: 199.7434104 | E77: -99.74341037 | F77: -7680.499188
B78: 2028-02-01 | C78: 100 | D78: 202.4066558 | E78: -102.4066558 | F78: -7882.905844
B79: 2028-03-01 | C79: 100 | D79: 205.1054112 | E79: -105.1054112 | F79: -8088.011255
B80: 2028-04-01 | C80: 100 | D80: 207.8401501 | E80: -107.8401501 | F80: -8295.851405
B81: 2028-05-01 | C81: 100 | D81: 210.6113521 | E81: -110.6113521 | F81: -8506.462757
B82: 2028-06-01 | C82: 100 | D82: 213.4195034 | E82: -113.4195034 | F82: -8719.88226
B83: 2028-07-01 | C83: 100 | D83: 216.2650968 | E83: -116.2650968 | F83: -8936.147357
B84: 2028-08-01 | C84: 100 | D84: 219.1486314 | E84: -119.1486314 | F84: -9155.295989
B85: 2028-09-01 | C85: 100 | D85: 222.0706132 | E85: -122.0706132 | F85: -9377.366602
B86: 2028-10-01 | C86: 100 | D86: 225.0315547 | E86: -125.0315547 | F86: -9602.398157
B87: 2028-11-01 | C87: 100 | D87: 228.0319754 | E87: -128.0319754 | F87: -9830.430132
B88: 2028-12-01 | C88: 100 | D88: 231.0724018 | E88: -131.0724018 | F88: -10061.50253
B89: 2029-01-01 | C89: 100 | D89: 234.1533671 | E89: -134.1533671 | F89: -10295.6559
B90: 2029-02-01 | C90: 100 | D90: 237.275412 | E90: -137.275412 | F90: -10532.93131
B91: 2029-03-01 | C91: 100 | D91: 240.4390842 | E91: -140.4390842 | F91: -10773.3704
B92: 2029-04-01 | C92: 100 | D92: 243.6449386 | E92: -143.6449386 | F92: -11017.01534
B93: 2029-05-01 | C93: 100 | D93: 246.8935378 | E93: -146.8935378 | F93: -11263.90887
B94: 2029-06-01 | C94: 100 | D94: 250.1854516 | E94: -150.1854516 | F94: -11514.09433
B95: =DATE(YEAR(B94),MONTH(B94)+1,DAY(B94)) -> 2029-07-01 | C95: =$C$6 -> 100 | D95: 253.5212577 | E95: =F94*$C$5/12 -> -153.5212577 | F95: -11767.61558
B96: 2029-08-01 | C96: 100 | D96: 256.9015411 | E96: -156.9015411 | F96: -12024.51712
B97: 2029-09-01 | C97: 100 | D97: 260.326895 | E97: -160.326895 | F97: -12284.84402
B98: 2029-10-01 | C98: 100 | D98: 263.7979203 | E98: -163.7979203 | F98: -12548.64194
B99: 2029-11-01 | C99: 100 | D99: 267.3152259 | E99: -167.3152259 | F99: -12815.95717
B100: 2029-12-01 | C100: 100 | D100: 270.8794289 | E100: -170.8794289 | F100: -13086.83659
B101: 2030-01-01 | C101: 100 | D101: 274.4911546 | E101: -174.4911546 | F101: -13361.32775
B102: 2030-02-01 | C102: 100 | D102: 278.1510366 | E102: -178.1510366 | F102: -13639.47879
B103: 2030-03-01 | C103: 100 | D103: 281.8597171 | E103: -181.8597171 | F103: -13921.3385
B104: 2030-04-01 | C104: 100 | D104: 285.6178467 | E104: -185.6178467 | F104: -14206.95635
B105: 2030-05-01 | C105: 100 | D105: 289.4260847 | E105: -189.4260847 | F105: -14496.38243
B106: 2030-06-01 | C106: 100 | D106: 293.2850991 | E106: -193.2850991 | F106: -14789.66753
B107: 2030-07-01 | C107: 100 | D107: =C107-E107 -> 297.1955671 | E107: -197.1955671 | F107: -15086.8631
B108: 2030-08-01 | C108: 100 | D108: 301.1581747 | E108: -201.1581747 | F108: =F107-D108 -> -15388.02127
B109: 2030-09-01 | C109: 100 | D109: 305.173617 | E109: -205.173617 | F109: -15693.19489
B110: 2030-10-01 | C110: 100 | D110: 309.2425986 | E110: -209.2425986 | F110: -16002.43749
B111: 2030-11-01 | C111: 100 | D111: 313.3658332 | E111: -213.3658332 | F111: -16315.80332
B112: 2030-12-01 | C112: 100 | D112: 317.5440443 | E112: -217.5440443 | F112: -16633.34737
B113: 2031-01-01 | C113: 100 | D113: 321.7779649 | E113: -221.7779649 | F113: -16955.12533
B114: 2031-02-01 | C114: 100 | D114: 326.0683378 | E114: -226.0683378 | F114: -17281.19367
B115: 2031-03-01 | C115: 100 | D115: 330.4159156 | E115: -230.4159156 | F115: -17611.60959
B116: 2031-04-01 | C116: 100 | D116: 334.8214611 | E116: -234.8214611 | F116: -17946.43105
B117: 2031-05-01 | C117: 100 | D117: 339.2857473 | E117: -239.2857473 | F117: -18285.71679
B118: 2031-06-01 | C118: 100 | D118: 343.8095573 | E118: -243.8095573 | F118: -18629.52635
B119: 2031-07-01 | C119: 100 | D119: 348.3936847 | E119: -248.3936847 | F119: -18977.92004
B120: 2031-08-01 | C120: 100 | D120: 353.0389338 | E120: -253.0389338 | F120: -19330.95897
B121: 2031-09-01 | C121: 100 | D121: 357.7461196 | E121: -257.7461196 | F121: -19688.70509
B122: 2031-10-01 | C122: 100 | D122: 362.5160679 | E122: -262.5160679 | F122: -20051.22116
B123: 2031-11-01 | C123: 100 | D123: 367.3496154 | E123: -267.3496154 | F123: -20418.57077
B124: 2031-12-01 | C124: 100 | D124: 372.2476103 | E124: -272.2476103 | F124: -20790.81838
B125: 2032-01-01 | C125: 100 | D125: 377.2109118 | E125: -277.2109118 | F125: -21168.02929
B126: 2032-02-01 | C126: 100 | D126: 382.2403906 | E126: -282.2403906 | F126: -21550.26969
B127: 2032-03-01 | C127: 100 | D127: 387.3369291 | E127: -287.3369291 | F127: -21937.60661
B128: 2032-04-01 | C128: 100 | D128: 392.5014215 | E128: -292.5014215 | F128: -22330.10804
B129: 2032-05-01 | C129: 100 | D129: 397.7347738 | E129: -297.7347738 | F129: -22727.84281
B130: 2032-06-01 | C130: 100 | D130: 403.0379041 | E130: -303.0379041 | F130: -23130.88071
